fUSD/lending_fUSD_20240702
["ID","MTS","AMOUNT","RATE_DAILY","PERIOD"]
[330941745,1719957032462,-1622.15927746,0.00013759,2]
[330941746,1719957032474,-1209.0668797,0.00013759,2]
[330941747,1719957032484,-3923.40321997,0.00014,2]
[330941748,1719957032496,-233396.11309904,0.00014,2]
[330941759,1719957038324,-256.77297901,0.0001196,2]
[330941761,1719957038338,-991.07636495,0.0001196,2]
[330941763,1719957038348,-1918.85163474,0.00014,2]
[330941766,1719957038360,-558752.7423503,0.00014,2]
[330941930,1719957040060,-139017.46858493,0.00014,2]
[330941933,1719957040072,-4661.7770805,0.00014,2]
[330941935,1719957040084,-600.96056067,0.00014,2]
[330941937,1719957040096,-3018.77743687,0.00014,2]
[330941946,1719957040174,-157157.68521724,0.00014,2]
[330941949,1719957040186,-32332.34669367,0.00014,2]
[330941960,1719957040286,-361.32,0.00014,2]
[330941962,1719957040304,-432.917,0.00014,2]
[330941965,1719957040316,-1465.41185795,0.00014,2]
[330941985,1719957040510,-0.20507421,0.00014,2]
[330941988,1719957040522,-1114.04420081,0.00014,2]
[330941990,1719957040533,-1950.0,0.00014,2]
[330941994,1719957040565,-825.15284921,0.00014,2]
[330941996,1719957040577,-1595.00618646,0.00014,2]
[330941999,1719957040589,-1661.8907034,0.00014,2]
[330942225,1719957042940,-34579.85522057,0.00014,2]
[330942231,1719957043035,-6069.28380622,0.00014,2]
[330942232,1719957043136,-126122.98139696,0.00014,2]
[330942233,1719957043148,-357.69482547,0.00014,2]
[330942234,1719957043159,-507.53028692,0.00014,2]
[330942455,1719957045913,-1673.90953421,0.00014,2]
[330942457,1719957045926,-712.46780598,0.00014,2]
[330942504,1719957046532,-300271.81773756,0.00014,2]
[330942505,1719957046543,-620.76983946,0.00014,2]
[330942506,1719957046574,-3930.81363626,0.00014,2]
[330942507,1719957046590,-150354.97906062,0.00014,2]
[330942509,1719957046602,-362.68407531,0.00014,2]
[330942512,1719957046614,-524.95523054,0.00014,2]
[330942516,1719957046642,-791.41886247,0.00014,2]
[330942518,1719957046653,-429.34971866,0.00014,2]
[330943149,1719957214225,10000.0,0.00026,120]
[330943225,1719957508353,2374.91937654,0.00011199,2]
[330943233,1719957567925,578.55621479,0.00011199,2]
[330943234,1719957575102,552.90912619,0.00011199,2]
[330943240,1719957633310,162.53,0.0001075,2]
[330943245,1719957665112,546.90369191,0.00011199,2]
[330943249,1719957843811,1275.65882337,0.00011199,2]
[330943250,1719957848227,1279.79304108,0.00011199,2]
[330943253,1719957899482,17000.0,0.00011199,2]
[330943255,1719957930979,155.0,0.00011199,2]
[330943256,1719957943959,678.36292703,0.00011199,2]
[330943257,1719957948982,1500.0,0.00026,120]
[330943264,1719957984168,1733.0,0.00026,120]
[330943266,1719958006018,5599.94548789,0.00011199,2]
[330943268,1719958024668,3105.06130508,0.00011199,2]
[330943270,1719958048918,3849.8654,0.00011199,2]
[330943272,1719958151928,247.00917619,0.00011199,2]
[330943273,1719958159703,647.57320469,0.00011199,2]
[330943274,1719958160446,292.50862256,0.00011199,2]
[330943281,1719958191551,156.53084773,0.00011199,2]
[330943303,1719958232275,-3402.88551157,0.00011268,2]
[330943304,1719958232284,-6810.40558464,0.00011268,2]
[330943305,1719958232295,-396.24892489,0.00011268,2]
[330943306,1719958232306,-1742.16739014,0.00011268,2]
[330943307,1719958232318,-4285.97459443,0.00011268,2]
[330943308,1719958232327,-563.71,0.00011368,2]
[330943309,1719958232337,-150.0,0.000126,2]
[330943310,1719958232346,-945.00678875,0.00013128,2]
[330943311,1719958232355,-2831.22615716,0.00013128,2]
[330943312,1719958232367,-300.0,0.0001314,2]
[330943313,1719958232377,-6176.48,0.00013141,2]
[330943314,1719958232386,-60.75404549,0.0001316,2]
[330943315,1719958232399,-96.32595451,0.0001316,2]
[330943316,1719958232408,-250.0,0.00013167,2]
[330943317,1719958232418,-177.75,0.00013169,2]
[330943318,1719958232427,-184.28825685,0.00013198,2]
[330943320,1719958232436,-49.93897861,0.00013398,2]
[330943322,1719958232448,-119.05102139,0.00013398,2]
[330943324,1719958232457,-177.11,0.00013438,2]
[330943326,1719958232467,-150.99,0.00013438,2]
[330943328,1719958232477,-499.99,0.00013472,2]
[330943330,1719958232486,-1496.8051579,0.00013472,2]
[330943332,1719958232495,-788.56484494,0.00013516,2]
[330943334,1719958232505,-241.63771124,0.00013516,2]
[330943336,1719958232514,-155.0,0.00013543,2]
[330943337,1719958232524,-155.27941633,0.00013543,2]
[330943338,1719958232534,-430.9664964,0.00013543,2]
[330943339,1719958232543,-645.87572359,0.00013574,2]
[330943340,1719958232552,-443.08544867,0.00013574,2]
[330943341,1719958232562,-563.71,0.00013631,2]
[330943342,1719958232571,-214.27,0.00013699,2]
[330943343,1719958232579,-155.0,0.00013736,2]
[330943344,1719958232588,-204.05597334,0.00013736,2]
[330943345,1719958232597,-155.0,0.00013802,2]
[330943346,1719958232606,-200.0,0.00013819,2]
[330943347,1719958232615,-3215.796,0.00013846,2]
[330943348,1719958232625,-297.67407573,0.00013849,2]
[330943349,1719958232634,-218.11438004,0.00013849,2]
[330943350,1719958232643,-155.0,0.00013849,2]
[330943351,1719958232656,-64852.0167,0.000139,2]
[330943352,1719958232665,-310.0,0.000139,2]
[330943353,1719958232674,-2813.5844,0.000139,2]
[330943354,1719958232683,-798.1009,0.000139,2]
[330943355,1719958232692,-1808.76249646,0.00013946,2]
[330943356,1719958232701,-155.0,0.00013989,2]
[330943357,1719958232711,-155.0,0.00013989,2]
[330943358,1719958232720,-640401.13004202,0.00014,2]
[330943359,1719958232752,-74907.82263831,0.00014,2]
[330943360,1719958232763,-25833.1851049,0.00014,2]
[330943361,1719958232774,-286.18192272,0.00014,2]
[330943363,1719958238301,-258.88603077,0.00012273,2]
[330943364,1719958238310,-2307.31362561,0.00013128,2]
[330943365,1719958238322,-523.91253155,0.00013128,2]
[330943366,1719958238332,-2042.7772992,0.00013472,2]
[330943367,1719958238344,-983.09951435,0.00013472,2]
[330943368,1719958238353,-328.50066625,0.00013516,2]
[330943369,1719958238363,-235613.45417788,0.00014,2]
[330943370,1719958238374,-1985.64934153,0.00014,2]
[330943371,1719958238385,-1002.16892495,0.00014,2]
[330943372,1719958238396,-558752.7423503,0.00014,2]
[330943373,1719958238528,-331.0,0.00014,2]
[330943482,1719958240610,-155.0,0.00013516,2]
[330943483,1719958240620,-96171.3534702,0.00014,2]
[330943484,1719958240635,-394.6457,0.00014,2]
[330943485,1719958240646,-2834.67497307,0.00014,2]
[330943486,1719958240798,-387.37289741,0.00014,2]
[330943487,1719958240982,-1606.0,0.00014,2]
[330943608,1719958243296,-12326.67692332,0.00014,2]
[330943620,1719958243430,-740.76734568,0.00014,2]
[330943622,1719958243441,-1169.0,0.00014,2]
[330943624,1719958243453,-13874.05453016,0.00014,2]
[330943626,1719958243464,-308.30543896,0.00014,2]
[330943635,1719958243563,-2874.96074218,0.00014,2]
[330943636,1719958243574,-349.229994,0.00014,2]
[330943637,1719958243586,-621.884,0.00014,2]
[330943645,1719958246330,-788.56484494,0.00013472,2]
[330943646,1719958246341,-506.16120352,0.00013574,2]
[330943647,1719958246351,-12396.09736536,0.00014,2]
[330943648,1719958246364,-522.93853237,0.00014,2]
[330943649,1719958246434,-339.0,0.00014,2]
[330943650,1719958246448,-2038.65302621,0.00014,2]
[330943651,1719958246460,-6723.95799994,0.00014,2]
[330943652,1719958246473,-3404.49953242,0.00014,2]
[330943653,1719958246532,-301.33416204,0.00014,2]
[330943654,1719958246545,-552.05328619,0.00014,2]
[330943943,1719958443112,166.69,0.00011024,2]
[330943946,1719958643575,7511.89853876,0.00011199,2]
[330943947,1719958643996,6709.78217184,0.00011024,2]
[330943948,1719958710682,5000.3045085,0.00011199,2]
[330943951,1719958765206,552.49402152,0.00011024,2]
[330943953,1719958819709,944.62509545,0.00011199,2]
[330943955,1719959058339,235.4971687,0.00011199,2]
[330943965,1719959214123,3020.83038427,0.00011199,2]
[330943966,1719959232428,321.88586054,0.00011199,2]
[330943967,1719959248187,1463.36277021,0.00011199,2]
[330943983,1719959432401,-568.37,0.00011567,2]
[330943984,1719959432411,-285.20816779,0.00012273,2]
[330943985,1719959432420,-155.74265188,0.00012302,2]
[330943986,1719959432429,-5.17445806,0.00012302,2]
[330943987,1719959432442,-357.24221731,0.00012302,2]
[330943988,1719959432452,-93.70385193,0.00012314,2]
[330943989,1719959432463,-140.87629189,0.00012314,2]
[330943990,1719959432473,-250.0,0.00012984,2]
[330943991,1719959432482,-168.99,0.00013238,2]
[330943992,1719959432491,-177.11,0.00013274,2]
[330943993,1719959432501,-200.0,0.00013454,2]
[330943994,1719959432510,-2207.09624905,0.00013472,2]
[330943995,1719959432647,-1380.46616302,0.00013472,2]
[330943996,1719959432658,-345.5,0.00013472,2]
[330943997,1719959432669,-1423.90798741,0.00013472,2]
[330943998,1719959432679,-193.56824641,0.00013516,2]
[330943999,1719959432688,-156.09391946,0.00013543,2]
[330944000,1719959432697,-187.7577397,0.00013543,2]
[330944001,1719959432706,-717.3917686,0.00013543,2]
[330944002,1719959432716,-6406.50049287,0.00013564,2]
[330944003,1719959432725,-150.0,0.00013573,2]
[330944004,1719959432734,-8582.54579053,0.00013574,2]
[330944005,1719959432744,-3394.63522656,0.00013574,2]
[330944006,1719959432753,-4651.90296165,0.00013574,2]
[330944007,1719959432765,-65306.87123802,0.00013574,2]
[330944008,1719959432775,-1252.62444817,0.00013574,2]
[330944009,1719959432784,-240.36,0.00013699,2]
[330944010,1719959432794,-932.12,0.000137,2]
[330944011,1719959432803,-9016.1602,0.000137,2]
[330944012,1719959432812,-500.0,0.000137,2]
[330944013,1719959432822,-212.2814,0.000137,2]
[330944014,1719959432831,-2296.19511957,0.000137,2]
[330944016,1719959432840,-416.74693327,0.00013717,2]
[330944017,1719959432850,-690.89571217,0.00013736,2]
[330944019,1719959432859,-788.56484494,0.00013759,2]
[330944021,1719959432868,-6010.80358023,0.0001379,2]
[330944022,1719959432878,-327.775,0.000138,2]
[330944024,1719959432887,-443.8513,0.000138,2]
[330944026,1719959432897,-25385.29465204,0.000138,2]
[330944030,1719959433168,-621.28822806,0.000138,2]
[330944031,1719959433180,-559.75762178,0.000138,2]
[330944032,1719959433192,-218433.65949812,0.000138,2]
[330944033,1719959433202,-4023.4946,0.000138,2]
[330944034,1719959433212,-234.16996596,0.000138,2]
[330944035,1719959433221,-568.37,0.00013831,2]
[330944036,1719959433230,-422.59657,0.0001386,2]
[330944037,1719959433241,-422.59657,0.0001386,2]
[330944038,1719959433250,-422.59658,0.0001386,2]
[330944039,1719959433259,-422.59657,0.0001386,2]
[330944040,1719959433272,-2309.7039,0.0001386,2]
[330944041,1719959433281,-1000.0,0.00013879,2]
[330944042,1719959433290,-499.99,0.00013879,2]
[330944043,1719959433300,-257.85708312,0.00013889,2]
[330944044,1719959433308,-607.12698249,0.00013889,2]
[330944045,1719959433318,-4287.7009,0.000139,2]
[330944046,1719959433327,-1000.0,0.000139,2]
[330944047,1719959433336,-100000.0,0.000139,2]
[330944048,1719959433346,-284595.4988,0.000139,2]
[330944049,1719959433355,-160.89882541,0.000139,2]
[330944050,1719959433365,-181.63753113,0.000139,2]
[330944051,1719959433374,-2580.01908415,0.000139,2]
[330944052,1719959433383,-7500.0,0.000139,2]
[330944053,1719959433393,-10000.0,0.000139,2]
[330944054,1719959433402,-385.10220627,0.00013903,2]
[330944055,1719959433411,-155.13435004,0.00013989,2]
[330944056,1719959433420,-475.04909202,0.00013999,2]
[330944057,1719959433429,-155.0,0.00013999,2]
[330944058,1719959433438,-156.31373008,0.00013999,2]
[330944059,1719959433447,-155.28272843,0.00013999,2]
[330944060,1719959433457,-218.40867314,0.00013999,2]
[330944061,1719959433466,-306.40230787,0.00013999,2]
[330944062,1719959433476,-96338.38276256,0.00014,2]
[330944063,1719959433491,-322.719495,0.00014,2]
[330944064,1719959433501,-862.021,0.00014,2]
[330944065,1719959433512,-2597.6944,0.00014,2]
[330944066,1719959433524,-7447.32319545,0.00014,2]
[330944072,1719959438545,-19891.4915282,0.00014,2]
[330944085,1719959438695,-1189.17655856,0.00014,2]
[330944087,1719959438707,-13126.07364633,0.00014,2]
[330944093,1719959438854,-79470.61765355,0.00014,2]
[330944096,1719959438866,-301.52429435,0.00014,2]
[330944179,1719959440515,-1897.45165231,0.00014,2]
[330944180,1719959440670,-1596.88006637,0.00014,2]
[330944181,1719959440683,-500.0,0.00014,2]
[330944182,1719959440813,-2371.47496843,0.00014,2]
[330944183,1719959440824,-12290.05429509,0.00014,2]
[330944184,1719959440836,-561.97850452,0.00014,2]
[330944185,1719959440848,-442.88999996,0.00014,2]
[330944186,1719959440860,-1830.21426162,0.00014,2]
[330944187,1719959440953,-1251509.11731662,0.00014,2]
[330944188,1719959440965,-574.61696002,0.00014,2]
[330944189,1719959440978,-312.3160075,0.00014,2]
[330944190,1719959441091,-2317.16226982,0.00014,2]
[330944191,1719959441103,-340.78144659,0.00014,2]
[330944192,1719959441115,-174377.66195999,0.00014,2]
[330944417,1719959443552,150.0,0.00011199,2]
[330944420,1719959443575,135.20816779,0.00011199,2]
[330944457,1719959443906,-8047.36758596,0.00014,2]
[330944461,1719959444000,-709.17,0.00014,2]
[330944462,1719959444011,-10184.91313959,0.00014,2]
[330944463,1719959444023,-4329.33041893,0.00014,2]
[330944464,1719959444034,-19757.05064113,0.00014,2]
[330944465,1719959444046,-1026.45642444,0.00014,2]
[330944467,1719959444061,-23521.76724492,0.00014,2]
[330944469,1719959444072,-1040.75889,0.00014,2]
[330944470,1719959444083,-18044.046415,0.00014,2]
[330944472,1719959444094,-650.96828781,0.00014,2]
[330944475,1719959444105,-664.83272804,0.00014,2]
[330944477,1719959444116,-3292.164575,0.00014,2]
[330944479,1719959444130,-835.780956,0.00014,2]
[330944481,1719959444140,-11334.94247699,0.00014,2]
[330944483,1719959444151,-14435.04513219,0.00014,2]
[330944485,1719959444162,-22163.18622214,0.00014,2]
[330944488,1719959444173,-9125.41701027,0.00014,2]
[330944490,1719959444184,-259.76799298,0.00014,2]
[330944493,1719959444202,-6017.81405566,0.00014,2]
[330944499,1719959444250,-773.50363265,0.00014,2]
[330944501,1719959444262,-17920.90906937,0.00014,2]
[330944503,1719959444274,-1765.648,0.00014,2]
[330944686,1719959446451,-7500.0,0.000139,2]
[330944687,1719959446461,-8844.51668327,0.00014,2]
[330944688,1719959446660,-3845.72914333,0.00014,2]
[330944689,1719959446672,-10469.58564534,0.00014,2]
[330944690,1719959446684,-141653.8643691,0.00014,2]
[330944691,1719959446695,-2162.36006971,0.00014,2]
[330944692,1719959446831,-209.2893539,0.000139,2]
[330944693,1719959446842,-241.65671534,0.00014,2]
[330944694,1719959446855,-269601.78496051,0.00014,2]
[330944695,1719959446866,-8036.765211,0.00014,2]
[330944696,1719959446878,-282.67904618,0.00014,2]
[330944697,1719959446890,-1461.44363852,0.00014,2]
[330944698,1719959446902,-376.58731798,0.00014,2]
[330944699,1719959446914,-2535.49260384,0.00014,2]
[330944700,1719959446926,-663.34066091,0.00014,2]
[330944704,1719959651711,4887.67143973,0.00011,2]
[330944706,1719959715537,4624.27406555,0.00011,2]
[330944707,1719959743545,22038.02887842,0.000112,2]
[330944712,1719959749260,150.0,0.00011,2]
[330944713,1719959749280,150.0,0.00011,2]
[330944714,1719959749305,163.73418851,0.00011,2]
[330944716,1719959754804,166.7,0.00010524,2]
[330944717,1719959768625,540.44,0.00011189,2]
[330944718,1719959790515,150.5,0.0001399,30]
[330944719,1719959790995,220.0,0.0001398,30]
[330944723,1719959821188,679906.73105083,0.000225,120]
[330944724,1719959821216,900000.0,0.000225,120]
[330944725,1719959823654,150.0,0.00011199,2]
[330944726,1719959823676,43.56824641,0.00011199,2]
[330944727,1719959828156,538.00771326,0.00011199,2]
[330944729,1719959895588,209.23129906,0.00011199,2]
[330944730,1719959895611,2023.2018755,0.00011199,2]
[330944733,1719959919120,5599.94548789,0.00011199,2]
[330944734,1719959920822,295.08329297,0.00011199,2]
[330944735,1719959926246,531.7055518,0.00011199,2]
[330944736,1719959934557,158.44898211,0.00011199,2]
[330944737,1719959950116,158.44898211,0.00011199,2]
[330944739,1719959994676,231.20329789,0.00011199,2]
[330944741,1719960160226,1135.15116749,0.00011199,2]
[330944742,1719960163136,5599.94548789,0.00011199,2]
[330944744,1719960229886,155.0,0.00011199,2]
[330944745,1719960230237,158.24604543,0.00011199,2]
[330944746,1719960261536,628.98934018,0.00011199,2]
[330944747,1719960276429,263.52354896,0.00011199,2]
[330944748,1719960289315,203.21171112,0.00011199,2]
[330944749,1719960304156,720.62297892,0.00011199,2]
[330944750,1719960334647,297.10001472,0.00011199,2]
[330944751,1719960373163,165.79,0.00010219,2]
[330944752,1719960378871,430.9664964,0.00011199,2]
[330944753,1719960379735,450.0,0.00011199,2]
[330944754,1719960390855,430.9664964,0.00011199,2]
[330944755,1719960403110,155.0,0.00011199,2]
[330944756,1719960419068,155.0,0.00011199,2]
[330944757,1719960425229,513.41,0.00010824,2]
[330944758,1719960425728,155.0,0.00011199,2]
[330944759,1719960427148,5599.94548789,0.00011199,2]
[330944760,1719960451540,846.36534711,0.00011199,2]
[330944761,1719960467086,1132.70386003,0.00011199,2]
[330944789,1719960631587,-615.25441392,0.000118,2]
[330944791,1719960631599,-137.79693136,0.000118,2]
[330944793,1719960631609,-1500.06164362,0.00012214,2]
[330944795,1719960631618,-250.0,0.00012769,2]
[330944798,1719960631628,-150.0,0.00012904,2]
[330944801,1719960631637,-177.74,0.00012918,2]
[330944805,1719960631646,-1303.09,0.00013051,2]
[330944808,1719960631656,-163.34315413,0.00013052,2]
[330944810,1719960631667,-227.15684587,0.00013052,2]
[330944812,1719960631676,-221.591913,0.00013088,2]
[330944813,1719960631688,-291.818087,0.00013088,2]
[330944814,1719960631697,-7.196913,0.00013128,2]
[330944815,1719960631708,-522.53197838,0.00013128,2]
[330944816,1719960631717,-77.46802162,0.00013471,2]
[330944817,1719960631728,-222.53197838,0.00013471,2]
[330944818,1719960631738,-261.18195388,0.00013472,2]
[330944819,1719960631751,-1361.45276237,0.00013472,2]
[330944820,1719960631763,-1042.16772,0.00013472,2]
[330944821,1719960631775,-474.14756375,0.00013472,2]
[330944822,1719960631784,-69.87243625,0.00013472,2]
[330944823,1719960631867,-85.12756375,0.00013472,2]
[330944824,1719960631877,-365.90396338,0.00013516,2]
[330944825,1719960631886,-176.04847294,0.00013516,2]
[330944826,1719960631897,-46.34338167,0.00013516,2]
[330944827,1719960631907,-358.3866182,0.00013543,2]
[330944828,1719960631918,-160.19028962,0.00013543,2]
[330944829,1719960631927,-564.3046,0.000136,2]
[330944830,1719960631937,-150.0,0.00013643,2]
[330944831,1719960631946,-150.0,0.00013647,2]
[330944832,1719960631955,-150.0,0.00013648,2]
[330944833,1719960631965,-150.0,0.00013649,2]
[330944834,1719960631975,-150.0,0.00013657,2]
[330944835,1719960631984,-150.0,0.00013658,2]
[330944836,1719960631994,-150.0,0.00013659,2]
[330944837,1719960632003,-150.0,0.0001367,2]
[330944838,1719960632013,-150.0,0.0001367,2]
[330944839,1719960632023,-0.29616535,0.00013672,2]
[330944840,1719960632035,-149.70383465,0.00013672,2]
[330944841,1719960632044,-150.0,0.00013673,2]
[330944842,1719960632054,-92.19766535,0.00013678,2]
[330944843,1719960632065,-57.80233465,0.00013678,2]
[330944844,1719960632075,-150.0,0.00013682,2]
[330944845,1719960632085,-48.17325964,0.00013689,2]
[330944846,1719960632096,-101.82674036,0.00013689,2]
[330944847,1719960632106,-150.0,0.00013698,2]
[330944848,1719960632115,-247.77325964,0.00013699,2]
[330944849,1719960632127,-272.36674036,0.00013699,2]
[330944851,1719960632136,-160.08,0.00013699,2]
[330944852,1719960632145,-200.0,0.00013699,2]
[330944854,1719960632154,-367.45385964,0.00013699,2]
[330944856,1719960632165,-97.33614036,0.00013699,2]
[330944858,1719960632175,-903.05705964,0.00013699,2]
[330944860,1719960632186,-459.32294036,0.00013699,2]
[330944862,1719960632195,-1000.0,0.00013699,2]
[330944864,1719960632205,-2740.59105329,0.00013699,2]
[330944866,1719960632214,-500.0,0.000137,2]
[330944868,1719960632224,-4437.4458979,0.000137,2]
[330944870,1719960632235,-700.0,0.000137,2]
[330944872,1719960632246,-1095.19142246,0.000137,2]
[330944874,1719960632256,-404.7199998,0.000137,2]
[330944876,1719960632268,-19359.85007386,0.000137,2]
[330944877,1719960632279,-949.15901314,0.000137,2]
[330944878,1719960632319,-734.6075021,0.000137,2]
[330944881,1719960637544,-754.22229355,0.00012302,2]
[330944882,1719960637554,-203193.97889074,0.000137,2]
[330944883,1719960637564,-150.0,0.00013703,2]
[330944884,1719960637574,-150.0,0.00013704,2]
[330944885,1719960637583,-150.0,0.00013711,2]
[330944886,1719960637592,-150.0,0.00013715,2]
[330944887,1719960637601,-150.0,0.00013722,2]
[330944888,1719960637611,-150.0,0.00013723,2]
[330944889,1719960637620,-150.0,0.00013736,2]
[330944890,1719960637629,-150.0,0.00013736,2]
[330944891,1719960637639,-150.0,0.00013742,2]
[330944892,1719960637649,-150.0,0.00013746,2]
[330944893,1719960637659,-150.0,0.00013748,2]
[330944894,1719960637668,-150.0,0.00013756,2]
[330944895,1719960637678,-1562.99457939,0.00013759,2]
[330944896,1719960637688,-150.0,0.00013761,2]
[330944897,1719960637698,-150.0,0.00013762,2]
[330944898,1719960637708,-150.0,0.00013772,2]
[330944899,1719960637717,-150.0,0.00013774,2]
[330944900,1719960637727,-150.0,0.00013778,2]
[330944901,1719960637737,-150.0,0.00013784,2]
[330944902,1719960637747,-150.0,0.00013787,2]
[330944903,1719960637925,-5409.72322218,0.0001379,2]
[330944904,1719960637935,-150.0,0.00013791,2]
[330944905,1719960637945,-150.0,0.00013792,2]
[330944906,1719960637955,-1119.15413275,0.00013799,2]
[330944907,1719960637964,-1000.0,0.00013802,2]
[330944908,1719960637974,-168.03,0.00013806,2]
[330944909,1719960637983,-150.0,0.00013811,2]
[330944910,1719960637992,-279.34311326,0.00013816,2]
[330944911,1719960638002,-150.0,0.00013819,2]
[330944913,1719960638012,-150.0,0.00013838,2]
[330944915,1719960638022,-150.0,0.00013846,2]
[330944917,1719960638032,-150.0,0.00013847,2]
[330944919,1719960638041,-155.11456855,0.00013849,2]
[330944921,1719960638050,-150.0,0.00013849,2]
[330944923,1719960638060,-150.0,0.0001385,2]
[330944925,1719960638069,-150.0,0.00013855,2]
[330944927,1719960638079,-150.0,0.00013855,2]
[330944929,1719960638089,-150.0,0.00013856,2]
[330944931,1719960638099,-3199.8938,0.0001386,2]
[330944933,1719960638108,-2309.70391,0.0001386,2]
[330944935,1719960638118,-150.0,0.00013866,2]
[330944936,1719960638127,-150.0,0.00013868,2]
[330944938,1719960638137,-2309.70391,0.0001387,2]
[330944940,1719960638147,-150.0,0.00013875,2]
[330944942,1719960638157,-150.0,0.00013881,2]
[330944944,1719960638167,-150.0,0.00013895,2]
[330944946,1719960638176,-652.42686958,0.00013899,2]
[330944948,1719960638185,-10000.0,0.000139,2]
[330944950,1719960638195,-160.8988254,0.000139,2]
[330944952,1719960638205,-183.06532134,0.000139,2]
[330944954,1719960638214,-4055.32661914,0.000139,2]
[330944956,1719960638223,-2631.70932214,0.000139,2]
[330944958,1719960638233,-221.47981792,0.000139,2]
[330944960,1719960638242,-7500.0,0.000139,2]
[330944962,1719960638252,-162.19706699,0.000139,2]
[330944964,1719960638262,-150.0,0.000139,2]
[330944966,1719960638271,-219.38813236,0.000139,2]
[330944968,1719960638281,-1422.4284512,0.000139,2]
[330944970,1719960638291,-150.0,0.00013901,2]
[330944972,1719960638301,-150.0,0.00013909,2]
[330944974,1719960638310,-2309.7039,0.0001391,2]
[330944976,1719960638320,-170.408872,0.00013973,2]
[330944977,1719960638330,-557.53573856,0.00013989,2]
[330944978,1719960638339,-1342.28138561,0.00013999,2]
[330944979,1719960638349,-150.0,0.00013999,2]
[330944980,1719960638358,-209373.95301603,0.00014,2]
[330944981,1719960638371,-2114.8729136,0.00014,2]
[330944982,1719960638386,-29233.30445709,0.00014,2]
[330944983,1719960638403,-1004.37882857,0.00014,2]
[330944984,1719960638439,-62137.26,0.00014,2]
[330944985,1719960638451,-7039.17807487,0.00014,2]
[330944986,1719960638463,-751.676,0.00014,2]
[330944987,1719960638477,-1055.98696552,0.00014,2]
[330944988,1719960638491,-586.76358804,0.00014,2]
[330944989,1719960638503,-722.67910428,0.00014,2]
[330944990,1719960638576,-769.53217866,0.00014,2]
[330945018,1719960639800,-703.9999999,0.00014,2]
[330945019,1719960639817,-364.51668827,0.00014,2]
[330945020,1719960639830,-262.79677064,0.00014,2]
[330945021,1719960639971,-860.46234234,0.00014,2]
[330945022,1719960640140,-351467.58105782,0.00014,2]
[330945023,1719960640152,-6671.55597476,0.00014,2]
[330945024,1719960640164,-8364.0002197,0.00014,2]
[330945025,1719960640177,-6650.58585986,0.00014,2]
[330945026,1719960640309,-763.48000001,0.00014,2]
[330945027,1719960640321,-2207.49029818,0.00014,2]
[330945028,1719960640333,-629.37545265,0.00014,2]
[330945029,1719960640345,-309.12639055,0.00014,2]
[330945030,1719960640357,-448905.16895832,0.00014,2]
[330945163,1719960642726,-439.05999999,0.000139,2]
[330945186,1719960642944,-301.616,0.000139,2]
[330945188,1719960642960,-529.7399354,0.000139,2]
[330945189,1719960642972,-805.58956756,0.000139,2]
[330945190,1719960642984,-5423.99449705,0.000139,2]
[330945191,1719960642993,-23534.52091242,0.00014,2]
[330945192,1719960643005,-1023.82317081,0.00014,2]
[330945194,1719960643016,-294.14994472,0.00014,2]
[330945196,1719960643028,-767.44385148,0.00014,2]
[330945200,1719960643055,-559.40606601,0.00014,2]
[330945201,1719960643066,-10835.57489696,0.00014,2]
[330945202,1719960643076,-411.67896572,0.00014,2]
[330945203,1719960643087,-328.7496445,0.00014,2]
[330945204,1719960643099,-1747.575,0.00014,2]
[330945205,1719960643110,-34890.87127365,0.00014,2]
[330945206,1719960643121,-1203.47342585,0.00014,2]